bitfinex/quotes_SOLUSD_20260119
["timestamp","ask_amount","ask_price","bid_price","bid_amount"]
[1768864098891,9.77546333,133.02,132.97,9.77546333]
[1768864099094,7.5467426,133.04,132.98,7.99042926]
[1768864099399,9.77546333,133.02,132.98,0.47087813]
[1768864099575,9.77546333,133.01,132.98,0.47087813]
[1768864099777,0.02999997,133.03,132.98,0.47087813]
[1768864100087,0.02999997,133.03,132.98,7.99078519]
[1768864100296,16.48,133.05,133.01,0.47087813]
[1768864100475,103.06064408,133.06,133.01,0.47087813]
[1768864100676,0.02999997,133.04,132.97,0.47087813]
[1768864100872,0.02999997,133.04,132.98,7.519826]
[1768864101082,0.02999997,133.04,132.98,7.99070413]
[1768864101298,9.8054633,133.03,132.98,7.519826]
[1768864101503,0.02999997,133.03,132.98,7.99061043]
[1768864101796,9.77546333,133.02,132.98,0.47087813]
[1768864102599,95.57509231,133.06,132.98,9.77546333]
[1768864102899,95.54509234,133.06,133.01,0.47087813]
[1768864103096,95.54509234,133.06,133.0,9.77546333]
[1768864103097,0.02999997,133.06,133.0,10.23501932]
[1768864103397,16.50999997,133.08,133.02,0.45955599]
[1768864103788,16.50999997,133.08,133.03,0.45955599]
[1768864103990,26.2854633,133.08,133.03,0.45955599]
[1768864104185,0.02999997,133.07,133.0,0.45955599]
[1768864104385,0.02999997,133.07,133.01,0.45955599]
[1768864104691,9.77546333,133.06,133.01,0.45955599]
[1768864104993,9.77546333,133.06,133.0,26.31572391]
[1768864104994,16.48,133.08,133.03,0.45955599]
[1768864105400,16.48,133.08,133.05,10.23501932]
[1768864105595,7.51297908,133.11,133.05,10.23501932]
[1768864105804,18.98058659,133.12,133.06,10.23501932]
[1768864105805,9.97546333,133.12,133.06,10.23501932]
[1768864106108,16.68,133.12,133.06,10.23501932]
[1768864106282,9.77546333,133.11,133.06,10.23501932]
[1768864106482,16.68,133.12,133.04,0.45955599]
[1768864106483,24.19212158,133.12,133.04,0.45955599]
[1768864106703,24.19212158,133.12,133.04,10.23501932]
[1768864106902,9.77546333,133.11,133.06,10.23501932]
[1768864107087,0.2,133.12,133.09,0.45955599]
[1768864107398,0.2,133.12,133.09,10.23501932]
[1768864107612,0.2,133.12,133.09,7.97320398]
[1768864107986,0.2,133.12,133.09,0.45955599]
[1768864108578,0.2,133.12,133.06,7.51530325]
[1768864108889,9.77546333,133.1,133.06,7.97489085]
[1768864109096,0.2,133.12,133.07,7.97423153]
[1768864109294,1e-08,133.12,133.09,0.45955599]
[1768864109597,1e-08,133.12,133.11,10.23501932]
[1768864109803,0.2,133.15,133.12,10.23501932]
[1768864110187,0.2,133.16,133.14,0.45955599]
[1768864110580,0.2,133.16,133.08,31.64390659]
[1768864110786,0.2,133.16,133.13,0.45955599]
[1768864111009,0.2,133.16,133.11,0.45955599]
[1768864111193,0.2,133.16,133.11,10.23501932]
[1768864111394,0.2,133.16,133.11,17.74753252]
[1768864112108,9.97546333,133.16,133.11,7.97206919]
[1768864112300,17.4852599,133.16,133.11,0.45955599]
[1768864112701,7.70979657,133.16,133.11,0.45955599]
[1768864112902,0.2,133.16,133.12,0.45955599]
[1768864113495,0.2,133.16,133.12,7.97107541]
[1768864114206,9.77546333,133.15,133.1,0.45955599]
[1768864114715,9.77546333,133.15,133.11,7.51258084]
[1768864115011,0.2,133.16,133.12,7.97149067]
[1768864115209,0.2,133.16,133.13,0.45955599]
[1768864117296,0.2,133.16,133.13,7.97082787]
[1768864117713,0.2,133.16,133.13,0.45955599]
[1768864118191,9.97546333,133.15,133.11,7.51241959]
[1768864118390,0.2,133.16,133.11,7.97197558]
[1768864118590,0.2,133.16,133.13,0.45955599]
[1768864119611,0.2,133.16,133.13,7.97100576]
[1768864119810,0.2,133.17,133.13,7.97100576]
[1768864120417,0.2,133.17,133.14,0.45955599]
[1768864120600,0.2,133.17,133.15,0.45955599]
[1768864120798,0.2,133.18,133.16,0.45955599]
[1768864121001,0.2,133.18,133.13,26.29008719]
[1768864121002,0.2,133.18,133.14,0.45955599]
[1768864122420,0.2,133.18,133.14,7.97039478]
[1768864122608,0.2,133.18,133.14,0.45955599]
[1768864122915,0.2,133.18,133.16,0.47922652]
[1768864123492,0.2,133.2,133.16,10.25468985]
[1768864123696,0.2,133.2,133.17,10.25468985]
[1768864123898,0.2,133.21,133.19,0.47922652]
[1768864124306,1e-08,133.21,133.19,10.25468985]
[1768864124492,1e-08,133.21,133.2,7.98673402]
[1768864124888,1e-08,133.21,133.2,0.47922652]
[1768864125118,1e-08,133.21,133.2,7.98673402]
[1768864125416,23.96430449,133.26,133.2,7.98673402]
[1768864125417,7.90278598,133.29,133.21,0.47922652]
[1768864125724,0.4,133.29,133.23,10.25468985]
[1768864125904,16.66,133.3,133.25,0.47922652]
[1768864126213,0.4,133.27,133.21,0.47922652]
[1768864126404,0.4,133.29,133.23,0.47922652]
[1768864126602,9.77546333,133.25,133.21,7.98598686]
[1768864126805,10.17546333,133.26,133.21,7.98598686]
[1768864127115,0.4,133.26,133.21,7.98598686]
[1768864127312,10.17546333,133.26,133.21,7.98598686]
[1768864127496,10.17546333,133.26,133.21,0.47922652]
[1768864127697,0.4,133.24,133.18,0.47922652]
[1768864128002,10.17546333,133.24,133.19,7.98690743]
[1768864128204,0.4,133.24,133.19,7.98690743]
[1768864128401,10.17546333,133.24,133.19,7.98690743]
[1768864128609,0.4,133.27,133.2,0.47922652]
[1768864128810,9.77546333,133.24,133.2,0.47922652]
[1768864129521,10.17546333,133.25,133.2,0.47922652]
[1768864129701,9.77546333,133.24,133.2,0.47922652]
[1768864129905,0.4,133.25,133.2,10.25468985]
[1768864130100,10.17546333,133.25,133.2,0.47922652]
[1768864130305,0.4,133.27,133.21,0.47922652]
[1768864130597,9.77546333,133.26,133.22,7.98560694]
[1768864131026,10.17546333,133.27,133.22,7.98560694]
[1768864131231,0.4,133.27,133.22,7.98560694]
[1768864131432,0.4,133.27,133.22,17.76107027]
[1768864131728,0.2,133.28,133.23,0.47922652]
[1768864131918,9.77546333,133.27,133.23,0.47922652]
[1768864132134,0.2,133.28,133.23,0.47922652]
[1768864132316,9.77546333,133.27,133.23,0.47922652]
[1768864133250,8.10317994,133.28,133.23,0.47922652]
[1768864133405,8.10317994,133.28,133.23,7.98502518]
[1768864133725,9.77546333,133.27,133.23,7.98502518]
[1768864134148,8.10317994,133.28,133.23,7.98502518]
[1768864134437,9.77546333,133.27,133.23,0.47922652]
[1768864134606,17.27918972,133.27,133.23,0.47922652]
[1768864134917,9.77546333,133.26,133.23,0.47922652]
[1768864136417,9.77546333,133.26,133.19,0.4989162]
[1768864136418,10.17546333,133.24,133.19,0.4989162]
[1768864136626,9.77546333,133.21,133.17,0.4989162]
[1768864136922,10.17546333,133.22,133.17,0.4989162]
[1768864137105,9.77546333,133.21,133.17,0.4989162]
[1768864137306,10.17546333,133.22,133.17,0.4989162]
[1768864137506,9.77546333,133.21,133.17,0.4989162]
[1768864138020,7.50624185,133.23,133.17,7.50900224]
[1768864138219,9.77546333,133.22,133.17,8.00791844]
[1768864138521,9.77546333,133.2,133.15,0.4989162]
[1768864138724,0.4,133.21,133.16,7.50967051]
[1768864138915,9.77546333,133.2,133.16,7.50967051]
[1768864140240,9.77546333,133.2,133.17,0.4989162]
[1768864140439,9.77546333,133.19,133.15,8.00924289]
[1768864140641,23.94694237,133.22,133.13,18.77777924]
[1768864140642,9.77546333,133.17,133.13,0.4989162]
[1768864140844,0.4,133.16,133.11,8.01095251]
[1768864141023,9.77546333,133.15,133.11,8.01095251]
[1768864141341,16.44,133.18,133.12,0.4989162]
[1768864141533,7.50694237,133.22,133.15,0.4989162]
[1768864142025,40.54929169,133.23,133.15,8.00896132]
[1768864142026,9.77546333,133.2,133.15,8.00896132]
[1768864142229,40.54929169,133.23,133.16,0.4989162]
[1768864142230,16.44,133.23,133.16,0.4989162]
[1768864142430,9.77546333,133.21,133.16,0.4989162]
[1768864142626,9.77546333,133.2,133.16,0.4989162]
[1768864143142,0.3607463,133.21,133.16,0.4989162]
[1768864143343,9.77546333,133.19,133.16,0.4989162]
[1768864143543,9.77546333,133.19,133.15,7.51004512]
[1768864143739,16.44,133.19,133.14,0.4989162]
[1768864144041,16.44,133.19,133.14,8.00976136]
[1768864144232,9.77546333,133.18,133.14,8.00976136]
[1768864144427,9.77546333,133.17,133.14,0.4989162]
[1768864144741,9.77546333,133.18,133.14,8.00973599]
[1768864145540,7.86732892,133.22,133.15,0.4989162]
[1768864145846,9.77546333,133.21,133.16,0.4989162]
[1768864146043,9.77546333,133.2,133.16,0.4989162]
[1768864146343,9.77546333,133.2,133.16,8.00851999]
[1768864147136,0.3607463,133.2,133.15,7.51027178]
[1768864147343,12.53467422,133.19,133.16,7.50971697]
[1768864147948,0.3607463,133.2,133.16,7.50971697]
[1768864149149,0.3607463,133.2,133.15,8.00898294]
[1768864150537,7.86734867,133.22,133.16,0.4989162]
[1768864151256,12.53467422,133.2,133.16,0.4989162]
[1768864151549,12.53467422,133.19,133.16,0.4989162]
[1768864152050,0.3607463,133.21,133.16,0.4989162]
[1768864152428,0.3607463,133.21,133.16,8.00821675]
[1768864154856,0.3607463,133.21,133.17,0.4989162]
[1768864156247,0.3607463,133.21,133.16,0.4989162]
[1768864156440,7.50638042,133.22,133.16,0.4989162]
[1768864156957,12.53297278,133.2,133.16,8.00829106]
[1768864157145,12.53297278,133.19,133.16,8.00829106]
[1768864157655,12.53297278,133.2,133.16,0.4989162]
[1768864158246,12.53297278,133.18,133.16,0.4989162]
[1768864158650,12.47297273,133.18,133.16,0.4989162]
[1768864159038,16.3007463,133.23,133.16,0.4989162]
[1768864159553,12.53297278,133.21,133.16,0.4989162]
[1768864160250,16.3007463,133.23,133.17,0.4989162]
[1768864160442,12.53297278,133.21,133.17,0.4989162]
[1768864161261,16.3007463,133.23,133.17,0.4989162]
[1768864161444,12.53297278,133.22,133.17,0.4989162]
[1768864161649,12.53297278,133.21,133.17,0.4989162]
[1768864162240,12.53297278,133.22,133.17,0.4989162]
[1768864166963,12.53297278,133.24,133.19,0.47199828]
[1768864168071,12.53297278,133.25,133.19,0.47199828]
[1768864169154,16.44,133.26,133.19,0.47199828]
[1768864169355,12.53297278,133.25,133.19,0.47199828]
[1768864170156,16.44,133.27,133.19,0.47199828]
[1768864170360,12.53297278,133.24,133.19,0.47199828]
[1768864171067,16.44,133.27,133.2,0.47199828]
[1768864171283,28.97297278,133.27,133.23,0.47199828]
[1768864171958,12.53297278,133.26,133.23,0.47199828]
[1768864172484,28.97297278,133.27,133.23,0.47199828]
[1768864172657,16.44,133.27,133.23,0.47199828]
[1768864172981,12.73297278,133.28,133.23,0.47199828]
[1768864174273,0.2,133.28,133.23,0.47199828]
[1768864174448,0.2,133.28,133.24,0.47199828]
[1768864175454,0.2,133.28,133.25,0.47199828]
[1768864175654,0.2,133.3,133.27,0.47199828]
[1768864177082,16.44,133.34,133.28,0.47199828]
[1768864177288,0.4,133.34,133.29,0.47199828]
[1768864177485,0.2,133.35,133.29,13.00497106]
[1768864177675,13.13297278,133.35,133.3,0.47199828]
[1768864177876,0.4,133.34,133.29,0.47199828]
[1768864178072,12.93297278,133.33,133.29,0.47199828]
[1768864178679,0.6,133.35,133.3,0.47199828]
[1768864179583,0.2,133.35,133.3,0.47199828]
[1768864179768,0.2,133.35,133.3,12.53297278]
[1768864179970,0.2,133.35,133.33,0.47199828]
[1768864180292,0.2,133.35,133.33,0.44199829]
[1768864181183,0.2,133.39,133.34,12.53297278]
[1768864181478,0.2,133.39,133.35,12.53297278]
[1768864181683,0.2,133.39,133.3,5.9565132]
[1768864181867,12.99816765,133.38,133.3,5.34408856]
[1768864182183,0.46519487,133.38,133.33,0.47156409]
[1768864182382,0.46519487,133.37,133.33,0.47156409]
[1768864182575,12.99816765,133.37,133.33,0.47156409]
[1768864182775,0.46519487,133.37,133.33,0.47156409]
[1768864183189,0.46519487,133.38,133.33,0.47156409]
[1768864183361,12.99816765,133.38,133.33,0.47156409]
[1768864183559,12.99816765,133.35,133.29,0.47156409]
[1768864183781,12.53297278,133.35,133.3,0.47156409]
[1768864184085,12.99816765,133.35,133.3,13.00453687]
[1768864184380,0.46519487,133.35,133.31,0.47156409]
[1768864184687,12.99816765,133.35,133.31,0.47156409]
[1768864184862,0.46519487,133.35,133.31,0.47156409]
[1768864185184,12.99816765,133.35,133.31,0.47156409]
[1768864185883,12.53297278,133.34,133.31,0.47156409]
[1768864186088,12.99816765,133.33,133.28,0.47156409]
[1768864186289,12.99816765,133.33,133.28,13.00453687]
[1768864186663,12.99816765,133.33,133.28,0.47156409]
[1768864187587,12.99816765,133.33,133.29,0.47156409]
[1768864188494,0.46519487,133.33,133.29,13.00453687]
[1768864188693,12.99816765,133.33,133.29,0.47156409]
[1768864189665,0.46519487,133.33,133.29,0.47156409]
[1768864189877,12.99816765,133.33,133.29,0.47156409]
[1768864190066,0.46519487,133.33,133.29,0.47156409]
[1768864190388,12.99816765,133.33,133.29,0.47156409]
[1768864191390,0.46519487,133.33,133.29,13.00453687]
[1768864191972,12.99816765,133.33,133.29,0.47156409]
[1768864193702,0.46519487,133.33,133.29,0.47156409]
[1768864193893,12.99816765,133.33,133.29,0.47156409]
[1768864195177,12.53297278,133.38,133.24,0.47409472]
[1768864195178,0.48209885,133.29,133.24,0.47409472]
[1768864195387,0.48209885,133.31,133.24,0.47409472]
[1768864195592,0.48209885,133.31,133.21,22.3965132]
[1768864195593,0.48209885,133.31,133.27,0.47409472]
[1768864196202,13.01507163,133.31,133.27,0.47409472]
[1768864196578,16.44,133.32,133.27,0.47409472]
[1768864196775,16.44,133.32,133.28,0.47409472]
[1768864197304,12.53297278,133.3,133.26,0.47409472]
[1768864197473,13.01507163,133.3,133.26,0.47409472]
[1768864197674,12.53297278,133.29,133.26,0.47409472]
[1768864198390,0.48209885,133.3,133.26,0.47409472]
[1768864198701,13.01507163,133.3,133.26,0.47409472]
[1768864199202,12.53297278,133.28,133.25,0.47409472]
[1768864199701,13.01507163,133.29,133.25,0.47409472]
[1768864200602,12.53297278,133.3,133.25,0.47409472]
[1768864200903,5.45030275,133.3,133.25,0.47409472]
[1768864201104,5.45030275,133.3,133.26,0.47409472]
[1768864201308,5.9324016,133.27,133.2,0.47409472]
[1768864201517,5.9324016,133.26,133.22,0.47409472]
[1768864201679,0.48209885,133.26,133.22,0.47409472]
[1768864201999,5.45030275,133.24,133.2,0.47409472]
[1768864202801,5.45030275,133.23,133.2,0.47409472]
[1768864202999,5.9324016,133.24,133.2,0.47409472]
[1768864203329,0.48209885,133.27,133.21,0.47409472]
[1768864203506,0.48209885,133.29,133.22,0.47409472]
[1768864203678,5.45030275,133.27,133.23,0.47409472]
[1768864204100,5.45030275,133.26,133.23,0.47409472]
[1768864204407,0.48209885,133.27,133.23,0.47409472]
[1768864204595,5.45030275,133.26,133.22,0.47409472]
[1768864204798,5.9324016,133.26,133.22,0.47409472]
[1768864205789,0.48209885,133.26,133.22,0.47409472]
[1768864205996,5.45030275,133.25,133.2,0.47409472]
[1768864207005,5.9324016,133.26,133.22,0.47409472]
[1768864207678,5.45030275,133.25,133.22,0.47409472]
[1768864208026,5.9324016,133.25,133.21,7.5068669]
[1768864208190,5.45030275,133.24,133.2,7.98138625]
[1768864208385,5.45030275,133.23,133.18,0.47409472]
[1768864208583,5.9324016,133.23,133.18,0.47409472]
[1768864208881,5.9324016,133.23,133.19,7.50805589]
[1768864209077,5.9324016,133.22,133.18,0.47409472]
[1768864209301,7.5058955,133.23,133.16,7.50937659]
[1768864209302,5.45030275,133.2,133.16,7.50937659]
[1768864209491,5.45030275,133.2,133.17,7.98328673]
[1768864209691,5.45030275,133.21,133.17,7.98328673]
[1768864209907,5.9324016,133.21,133.17,0.47409472]
[1768864211010,5.95030275,133.2,133.17,0.47409472]
[1768864211212,0.5,133.2,133.17,0.47409472]
[1768864211385,5.95030275,133.2,133.17,0.47409472]
[1768864212286,0.5,133.2,133.17,0.47409472]
[1768864212504,5.95030275,133.2,133.17,0.47409472]
[1768864212704,6.4324016,133.2,133.16,0.47409472]
[1768864213311,6.4324016,133.2,133.16,7.98365766]
[1768864213701,5.9324016,133.19,133.15,7.9841944]
[1768864214486,5.45030275,133.19,133.16,7.98373436]
[1768864214790,5.45030275,133.2,133.16,7.98373436]
[1768864215110,12.53238025,133.2,133.16,7.98373436]
[1768864215606,12.53238025,133.2,133.16,7.50963964]
[1768864215803,12.53238025,133.2,133.17,0.47409472]
[1768864216112,16.92209885,133.24,133.18,0.47409472]
[1768864216285,13.0144791,133.23,133.18,0.47409472]
[1768864216482,96.02719119,133.26,133.18,0.47409472]
[1768864216798,0.48209885,133.28,133.23,0.47409472]
[1768864217105,12.53238025,133.27,133.23,0.47409472]
[1768864217502,13.0144791,133.27,133.23,0.47409472]
[1768864217680,13.0144791,133.25,133.2,0.47409472]
[1768864217884,0.48209885,133.27,133.23,0.47409472]
[1768864218287,12.53238025,133.26,133.23,0.47409472]
[1768864218911,13.00210859,133.27,133.23,0.47409472]
[1768864219410,13.00210859,133.25,133.19,0.47409472]
[1768864219605,12.52000974,133.22,133.19,0.47409472]
[1768864219806,0.48209885,133.23,133.19,7.98170762]
[1768864220008,12.52000974,133.22,133.19,7.98170762]
[1768864220210,0.48209885,133.23,133.19,7.98170762]
[1768864220893,13.00210859,133.23,133.19,7.98170762]
[1768864221092,13.00210859,133.23,133.19,0.47409472]
[1768864222192,0.48209885,133.22,133.18,7.50842023]
[1768864222407,12.52000974,133.19,133.15,0.47409472]
[1768864222585,12.52000974,133.2,133.17,7.50908939]
[1768864222786,12.52000974,133.21,133.17,7.98318411]
[1768864223200,12.52000974,133.22,133.18,7.99384875]
[1768864224315,7.98798114,133.23,133.18,7.99384875]
[1768864224612,12.9972235,133.22,133.18,0.48531657]
[1768864224818,12.52000974,133.2,133.17,7.99426359]
[1768864226204,12.52000974,133.19,133.16,7.50976269]
[1768864227210,12.9972235,133.2,133.16,26.76948598]
[1768864227401,0.47721376,133.2,133.16,26.76948598]
[1768864227608,12.52000974,133.21,133.17,0.48531657]
[1768864227813,16.44,133.22,133.18,0.48531657]
[1768864227814,28.96000974,133.22,133.18,0.48531657]
[1768864228430,0.47721376,133.3,133.22,0.48531657]
[1768864228594,0.47721376,133.32,133.27,13.00532631]
[1768864228799,0.47721376,133.32,133.28,13.00532631]
[1768864229028,12.52000974,133.33,133.28,13.00532631]
[1768864229221,12.9972235,133.33,133.28,13.00532631]
[1768864229727,12.9972235,133.29,133.22,0.48531657]
[1768864229897,0.47721376,133.29,133.24,13.00532631]
[1768864230093,12.9972235,133.29,133.24,12.97532631]
[1768864230402,0.47721376,133.29,133.25,7.50469043]
[1768864230596,0.47721376,133.29,133.25,20.02470017]
[1768864230798,0.47721376,133.31,133.25,20.02470017]
[1768864231097,0.47721376,133.31,133.27,12.52000974]
[1768864231727,12.9972235,133.31,133.26,12.52000974]
[1768864232106,12.9972235,133.31,133.26,20.50941659]
[1768864232326,0.47721376,133.31,133.26,7.98940685]
[1768864232528,12.9972235,133.31,133.26,20.50941659]
[1768864232996,12.9972235,133.31,133.26,7.98940685]
[1768864233199,12.9972235,133.3,133.26,0.48531657]
[1768864234114,12.52000974,133.29,133.26,0.48531657]
[1768864234312,0.47721376,133.29,133.25,20.02462626]
[1768864234828,0.47721376,133.29,133.25,7.98993309]
[1768864235119,0.47721376,133.29,133.25,20.50994283]
[1768864235319,7.50131272,133.31,133.25,20.50994283]
[1768864235521,12.9972235,133.3,133.25,20.50994283]
[1768864235911,12.9972235,133.3,133.25,7.98993309]
[1768864236109,12.9972235,133.3,133.25,20.50994283]
[1768864236322,12.9972235,133.3,133.25,0.48531657]
[1768864236504,0.47721376,133.29,133.25,0.48531657]
[1768864236711,12.52000974,133.27,133.23,0.48531657]
[1768864236923,12.9972235,133.25,133.21,7.50664358]
[1768864237223,12.9972235,133.25,133.21,7.99196015]
[1768864237423,12.52000974,133.23,133.19,0.48531657]
[1768864237603,12.52000974,133.23,133.2,7.50742187]
[1768864237805,12.52000974,133.23,133.19,0.48531657]
[1768864237806,12.9972235,133.23,133.19,0.48531657]
[1768864238208,0.47721376,133.23,133.19,0.48531657]
[1768864238433,12.9972235,133.23,133.19,0.48531657]
[1768864239724,20.50305522,133.23,133.19,0.48531657]
[1768864239947,12.9972235,133.2,133.15,7.99532644]
[1768864240239,12.52000974,133.19,133.15,7.99532644]
[1768864240617,12.52000974,133.19,133.15,7.99540491]
[1768864240860,0.47721376,133.2,133.16,7.50962923]
[1768864241036,0.47721376,133.2,133.14,0.1]
[1768864241209,12.52000974,133.17,133.14,0.1]
[1768864241706,12.52000974,133.16,133.14,0.1]
[1768864242136,12.97664146,133.17,133.14,0.1]
[1768864242314,12.97664146,133.17,133.11,12.62000974]
[1768864242315,0.45663172,133.16,133.11,0.1]
[1768864242509,12.52000974,133.16,133.12,8.00641406]
[1768864242707,12.52000974,133.17,133.12,13.01483568]
[1768864242914,12.52000974,133.17,133.12,20.52649057]
[1768864243127,12.97664146,133.18,133.13,0.49482594]
[1768864243335,12.97664146,133.18,133.13,8.00611081]
[1768864243632,12.97664146,133.18,133.13,20.52612055]
[1768864243846,37.52716712,133.24,133.13,20.52612055]
[1768864243847,0.45663172,133.27,133.18,0.49482594]
[1768864244007,0.45663172,133.27,133.23,12.52000974]
[1768864244210,0.45663172,133.27,133.18,16.44]
[1768864244522,12.97664146,133.27,133.22,12.52000974]
[1768864244724,0.42244765,133.26,133.22,11.59756209]
[1768864244947,12.52000974,133.23,133.14,12.52000974]
[1768864245168,16.44,133.26,133.13,7.51128487]
[1768864245169,12.52000974,133.19,133.13,7.51128487]
[1768864245314,12.52000974,133.18,133.13,7.51128487]
[1768864246047,7.50800062,133.2,133.14,0.49482594]
[1768864246530,12.52000974,133.18,133.14,0.49482594]
[1768864246935,7.50800062,133.2,133.14,0.49482594]
[1768864247251,12.52000974,133.18,133.14,0.49482594]
[1768864247751,7.50694392,133.21,133.15,0.49482594]
[1768864248068,12.52000974,133.18,133.15,0.49482594]
[1768864248215,12.52000974,133.16,133.11,0.59482594]
[1768864248418,12.52000974,133.16,133.13,8.00621213]
[1768864248649,12.52000974,133.18,133.14,8.00566824]
[1768864248946,12.52000974,133.17,133.14,0.49482594]
[1768864249739,12.52000974,133.16,133.14,0.49482594]
[1768864250250,7.50817993,133.19,133.14,0.49482594]
[1768864250422,12.52000974,133.17,133.14,0.49482594]
[1768864250741,7.50817993,133.19,133.14,0.49482594]
[1768864250948,7.50694392,133.21,133.11,0.59482594]
[1768864251247,12.52000974,133.14,133.11,0.59482594]
[1768864251417,12.52000974,133.15,133.11,0.59482594]
[1768864252036,7.50879417,133.18,133.12,0.49482594]
[1768864252241,7.50808846,133.19,133.12,0.49482594]
[1768864252445,7.50808846,133.19,133.13,0.49482594]
[1768864252749,12.52000974,133.2,133.15,0.49482594]
[1768864254062,18.76726928,133.22,133.15,8.00509723]
[1768864254352,12.52000974,133.19,133.15,0.49482594]
[1768864254649,12.52000974,133.18,133.15,0.49482594]
[1768864257149,12.52000974,133.19,133.15,0.49482594]
[1768864257846,12.52000974,133.19,133.15,8.00504398]
[1768864258236,12.52000974,133.2,133.16,0.47615637]
[1768864258437,12.52000974,133.17,133.12,0.47615637]
[1768864258642,12.52000974,133.13,133.11,0.1]
[1768864258848,12.46000975,133.13,133.11,0.1]
[1768864259051,12.52000974,133.14,133.11,0.1]
[1768864260355,12.52000974,133.12,133.09,0.1]
[1768864260532,12.52000974,133.1,133.09,0.1]
[1768864261834,0.02563086,133.13,133.09,0.1]
[1768864262060,12.52000974,133.12,133.09,0.1]
[1768864262255,12.52000974,133.1,133.09,0.1]
[1768864262437,12.52000974,133.1,133.07,0.1]
[1768864262747,12.52000974,133.08,133.07,0.1]
[1768864262950,18.7781172,133.14,133.07,0.1]
[1768864263140,12.52000974,133.09,133.07,0.1]
[1768864263957,12.52000974,133.08,133.07,0.1]
[1768864266653,7.51400459,133.09,133.07,0.1]
[1768864266654,12.52000974,133.09,133.07,0.1]
[1768864267667,12.52000974,133.08,133.07,0.1]
[1768864269370,12.52000974,133.09,133.07,0.1]
[1768864270065,12.52000974,133.09,133.07,0.57615637]
[1768864270984,18.78207793,133.11,133.07,0.57615637]
[1768864271263,7.51201923,133.12,133.07,0.57615637]
[1768864271567,12.52000974,133.11,133.07,0.57615637]
[1768864271742,12.52000974,133.11,133.07,8.0909881]
[1768864271939,12.52000974,133.11,133.08,0.47615637]
[1768864272368,0.06215634,133.08,133.05,0.1]
[1768864272570,12.52000974,133.06,133.05,0.1]
[1768864272773,26.36010506,133.12,133.05,0.57615637]
[1768864272975,12.52000974,133.1,133.07,0.47615637]
[1768864273145,0.06803776,133.14,133.07,0.47615637]
[1768864273467,12.52000974,133.11,133.07,0.47615637]
[1768864273969,13.01008066,133.08,133.02,7.51746043]
[1768864274260,12.52000974,133.05,133.01,0.1]
[1768864274564,12.52000974,133.11,133.02,7.51755149]
[1768864274565,12.52000974,133.06,133.02,7.51755149]
[1768864275349,12.52000974,133.06,133.02,18.79416629]
[1768864275964,12.52000974,133.06,133.02,0.47615637]
[1768864276171,12.52000974,133.03,133.01,0.1]
[1768864276568,0.46143614,133.04,133.01,0.1]
[1768864276773,12.52000974,133.02,133.01,0.1]
[1768864276960,0.46143614,133.04,133.01,0.1]
[1768864277146,16.46,133.08,133.01,0.1]
[1768864277353,7.51484181,133.07,133.01,0.57615637]
[1768864277569,12.52000974,133.05,133.01,0.57615637]
[1768864277772,12.46000975,133.05,133.01,0.57615637]
[1768864278410,5.34408856,133.1,133.02,0.47615637]
[1768864278568,12.52000974,133.06,133.02,0.47615637]
[1768864279277,12.52000974,133.05,133.02,0.47615637]
[1768864279456,12.52000974,133.05,133.02,7.99343863]
[1768864279646,12.52000974,133.06,133.02,7.99343863]
[1768864280254,12.52000974,133.06,133.03,0.47615637]
[1768864280881,7.93269121,133.08,133.03,7.99320171]
[1768864281253,12.55828955,133.06,133.03,7.99320171]
[1768864281479,12.55828955,133.05,133.03,0.47615637]
[1768864282488,0.41809083,133.08,133.04,0.47615637]
[1768864282655,12.55828955,133.07,133.04,0.47615637]
[1768864283583,0.41809083,133.08,133.04,7.9925944]
[1768864283779,12.55828955,133.07,133.04,7.9925944]
[1768864283979,103.4923529,133.1,133.04,7.9925944]
[1768864284163,7.94679873,133.11,133.05,0.54669538]
[1768864284369,12.55828955,133.1,133.06,0.54669538]
[1768864284675,12.55828955,133.11,133.07,0.54669538]
[1768864285397,12.55828955,133.12,133.08,0.54669538]
[1768864285562,0.43652536,133.15,133.09,0.54669538]
[1768864285762,12.55828955,133.13,133.1,7.513148]
[1768864285962,12.55828955,133.14,133.1,7.513148]
[1768864286171,12.55828955,133.14,133.1,8.05984338]
[1768864286375,12.55828955,133.14,133.11,0.54669538]
[1768864286773,12.55828955,133.15,133.11,0.54669538]
[1768864286977,0.43903536,133.17,133.11,0.54669538]
[1768864287288,12.55828955,133.17,133.12,0.54669538]
[1768864287480,7.94981549,133.19,133.13,0.54669538]
[1768864287685,12.55828955,133.17,133.13,8.05776479]
[1768864287992,7.50754057,133.2,133.15,0.54669538]
[1768864288165,12.55828955,133.19,133.15,0.54669538]
[1768864288983,12.55828955,133.2,133.15,0.54669538]
[1768864289791,12.55828955,133.18,133.15,8.05674651]
[1768864291087,12.55828955,133.19,133.15,8.05674651]